[Event "EICC 2021"]
[Site "Reykjavik"]
[Date "2021.08.29"]
[Round "4.29"]
[White "Vogel, Roven"]
[Black "Sivuk, Vitaly"]
[Result "1-0"]
[ECO "E67"]
[WhiteElo "2441"]
[BlackElo "2589"]
[Annotator "ChessBase"]
[PlyCount "80"]
[EventDate "2021.08.26"]
[EventType "swiss"]
[EventCountry "ISL"]
[Tiebreak "Cut1 Buchholz"]
[SourceTitle "playchess.com"]
[Source "ChessBase"]
[SourceQuality "1"]
[TimeControl "40/5400+30:1800+30"]

1. c4 {[%emt 0:00:03]} Nf6 {[%emt 0:02:52]} 2. Nc3 {[%emt 0:00:09]} g6 {
[%emt 0:00:11]} 3. g3 {[%emt 0:00:14]} Bg7 {[%emt 0:00:11]} 4. Bg2 {[%emt 0:00:
08]} O-O {[%emt 0:00:09]} 5. d4 {[%emt 0:00:20]} d6 {[%emt 0:00:13]} 6. Nf3 {
[%emt 0:00:11]} Nbd7 {[%emt 0:00:12]} 7. O-O {[%emt 0:00:12]} e5 {[%emt 0:00:
08]} 8. e4 {[%emt 0:00:07]} Re8 {[%emt 0:00:09]} 9. h3 {[%emt 0:01:00]} b6 {
[%emt 0:00:11]} 10. d5 {[%emt 0:15:55]} Nc5 {[%emt 0:01:24]} 11. Ne1 {[%emt 0:
02:54]} a5 {[%emt 0:00:17]} 12. Nc2 {[%emt 0:00:59]} Rf8 {[%emt 0:00:53]} 13.
Bg5 {[%emt 0:11:32]} h6 {[%emt 0:00:57]} 14. Be3 {[%emt 0:00:06]} Nh7 {[%emt 0:
10:00]} 15. Qd2 {[%emt 0:11:42]} f5 {[%emt 0:04:35]} 16. f4 {[%emt 0:23:29]}
exf4 {[%emt 0:04:25]} 17. Bxf4 {[%emt 0:00:42]} Ng5 {[%emt 0:12:51]} 18. Nd4 {
[%emt 0:05:10]} Qf6 {[%emt 0:32:18]} 19. Nc6 {[%emt 0:02:38]} Ba6 {[%emt 0:06:
54]} 20. e5 {[%emt 0:02:10]} dxe5 {[%emt 0:00:17]} 21. Bxe5 {[%emt 0:03:46]}
Qf7 {[%emt 0:00:01]} 22. Rae1 {[%emt 0:02:15]} Rae8 {[%emt 0:00:59]} 23. h4 {
[%emt 0:03:57]} Nh7 {[%emt 0:10:40]} 24. d6 {[%emt 0:00:07]} cxd6 {[%emt 0:01:
32]} 25. Bd5 {[%emt 0:00:36]} dxe5 {[%emt 0:00:15]} 26. Bxf7+ {[%emt 0:00:31]}
Rxf7 {[%emt 0:00:05]} 27. Qd6 {[%emt 0:01:21]} Rd7 {[%emt 0:04:05]} 28. Qxg6 {
[%emt 0:00:11]} Re6 {[%emt 0:00:07]} 29. Qxf5 {[%emt 0:00:23]} Rxc6 {[%emt 0:
00:06]} 30. Rd1 {[%emt 0:02:38]} Nf8 {[%emt 0:04:17]} 31. Rxd7 {[%emt 0:01:50]}
Ncxd7 {[%emt 0:00:09]} 32. Nd5 {[%emt 0:01:07]} Kh8 {[%emt 0:00:07]} 33. b3 {
[%emt 0:01:06]} Bb7 {[%emt 0:01:10]} 34. Qf7 {[%emt 0:01:27]} Rg6 {[%emt 0:03:
29]} 35. Ne7 {[%emt 0:00:32]} Rxg3+ {[%emt 0:00:17]} 36. Kh2 {[%emt 0:00:06]}
Rg2+ {[%emt 0:00:40]} 37. Kh3 {[%emt 0:00:06]} Bf6 {[%emt 0:01:21]} 38. Rxf6 {
[%emt 0:00:07]} Nxf6 {[%emt 0:00:14]} 39. Qxf6+ {[%emt 0:00:22]} Kh7 {[%emt 0:
00:13]} 40. Qxf8 {[%emt 0:00:47]} Bc8+ {[%emt 0:00:21]} 1-0

[Event "EICC 2021"]
[Site "Reykjavik"]
[Date "2021.08.29"]
[Round "4.30"]
[White "Juksta, Karolis"]
[Black "Can, Emre"]
[Result "1-0"]
[ECO "E20"]
[WhiteElo "2438"]
[BlackElo "2569"]
[Annotator "ChessBase"]
[PlyCount "99"]
[EventDate "2021.08.26"]
[EventType "swiss"]
[EventCountry "ISL"]
[Tiebreak "Cut1 Buchholz"]
[SourceTitle "playchess.com"]
[Source "ChessBase"]
[SourceQuality "1"]
[TimeControl "40/5400+30:1800+30"]

1. d4 {[%emt 0:00:02]} Nf6 {[%emt 0:00:32]} 2. c4 {[%emt 0:00:08]} e6 {[%emt 0:
00:23]} 3. Nc3 {[%emt 0:00:06]} Bb4 {[%emt 0:00:33]} 4. g3 {[%emt 0:00:12]} O-O
{[%emt 0:02:26]} 5. Bg2 {[%emt 0:00:35]} d5 {[%emt 0:02:38]} 6. Nf3 {[%emt 0:
00:24]} dxc4 {[%emt 0:01:25]} 7. O-O {[%emt 0:00:17]} Nc6 {[%emt 0:01:02]} 8.
Qa4 {[%emt 0:00:24]} Bd7 {[%emt 0:07:45]} 9. Bg5 {[%emt 0:01:09]} a5 {[%emt 0:
17:30]} 10. Bxf6 {[%emt 0:01:38]} Qxf6 {[%emt 0:00:53]} 11. a3 {[%emt 0:01:40]}
Nb8 {[%emt 0:08:00]} 12. Nb5 {[%emt 0:33:38]} Bd6 {[%emt 0:01:16]} 13. Qxc4 {
[%emt 0:00:19]} Bc6 {[%emt 0:00:18]} 14. Nxd6 {[%emt 0:09:09]} cxd6 {[%emt 0:
00:12]} 15. Rac1 {[%emt 0:00:57]} Nd7 {[%emt 0:03:08]} 16. Qd3 {[%emt 0:10:10]}
Rfc8 {[%emt 0:05:55]} 17. Nd2 {[%emt 0:07:10]} d5 {[%emt 0:02:29]} 18. Rc3 {
[%emt 0:03:45]} Qd8 {[%emt 0:07:19]} 19. Rfc1 {[%emt 0:00:35]} Nf6 {[%emt 0:02:
16]} 20. e3 {[%emt 0:04:07]} Ne8 {[%emt 0:02:52]} 21. Bf1 {[%emt 0:05:59]} Nd6
{[%emt 0:01:11]} 22. Qb1 {[%emt 0:02:11]} Qe8 {[%emt 0:09:30]} 23. Bd3 {
[%emt 0:01:44]} g6 {[%emt 0:01:06]} 24. h4 {[%emt 0:01:37]} Kg7 {[%emt 0:00:57]
} 25. Qc2 {[%emt 0:03:36]} Ba4 {[%emt 0:04:24]} 26. b3 {[%emt 0:03:53]} Rxc3 {
[%emt 0:00:32]} 27. Qxc3 {[%emt 0:00:06]} Rc8 {[%emt 0:01:21]} 28. Qb2 {
[%emt 0:00:08]} Bb5 {[%emt 0:00:40]} 29. Bb1 {[%emt 0:03:23]} a4 {[%emt 0:04:
10]} 30. bxa4 {[%emt 0:00:32]} Bxa4 {[%emt 0:01:23]} 31. Rc5 {[%emt 0:00:54]}
Bb5 {[%emt 0:01:14]} 32. Qc3 {[%emt 0:02:35]} Ra8 {[%emt 0:01:46]} 33. Qb2 {
[%emt 0:02:00]} Ra6 {[%emt 0:05:01]} 34. Rc3 {[%emt 0:01:35]} Bc4 {[%emt 0:01:
19]} 35. e4 {[%emt 0:00:48]} Qc6 {[%emt 0:02:49]} 36. Ba2 {[%emt 0:00:29]} b5 {
[%emt 0:00:24]} 37. Bb1 {[%emt 0:00:20]} Qb6 {[%emt 0:00:31]} 38. e5 {[%emt 0:
00:21]} Nc8 {[%emt 0:00:48]} 39. Rf3 {[%emt 0:00:15]} Ne7 {[%emt 0:00:48]} 40.
h5 {[%emt 0:00:37]} Nc6 {[%emt 0:00:54]} 41. Rf4 {[%emt 0:12:04]} Qa5 {[%emt 0:
04:53]} 42. h6+ {[%emt 0:10:55]} Kg8 {[%emt 0:08:16]} 43. Nxc4 {[%emt 0:02:16]}
dxc4 {[%emt 0:01:25]} 44. d5 {[%emt 0:00:19]} Nd8 {[%emt 0:04:30]} 45. d6 {
[%emt 0:01:11]} Rc6 {[%emt 0:02:09]} 46. Rf3 {[%emt 0:02:26]} f5 {[%emt 0:01:
45]} 47. g4 {[%emt 0:02:54]} Rc5 {[%emt 0:02:16]} 48. gxf5 {[%emt 0:01:19]}
Qe1+ {[%emt 0:01:58]} 49. Kg2 {[%emt 0:00:11]} Rxe5 {[%emt 0:03:15]} 50. Re3 {
[%emt 0:00:56]} 1-0

[Event "EICC 2021"]
[Site "Reykjavik"]
[Date "2021.08.29"]
[Round "4.31"]
[White "Paichadze, Luka"]
[Black "Sokolovsky, Yahli"]
[Result "1-0"]
[ECO "B23"]
[WhiteElo "2564"]
[BlackElo "2415"]
[Annotator "ChessBase"]
[PlyCount "59"]
[EventDate "2021.08.26"]
[EventType "swiss"]
[EventCountry "ISL"]
[Tiebreak "Cut1 Buchholz"]
[SourceTitle "playchess.com"]
[Source "ChessBase"]
[SourceQuality "1"]
[TimeControl "40/5400+30:1800+30"]

1. e4 {[%emt 0:00:05]} c5 {[%emt 0:00:12]} 2. Nc3 {[%emt 0:01:19]} d6 {[%emt 0:
00:52]} 3. d4 {[%emt 0:01:12]} cxd4 {[%emt 0:00:10]} 4. Qxd4 {[%emt 0:00:05]}
Nc6 {[%emt 0:07:14]} 5. Qd2 {[%emt 0:00:06]} g6 {[%emt 0:01:53]} 6. b3 {
[%emt 0:00:43]} Bh6 {[%emt 0:16:15]} 7. f4 {[%emt 0:00:31]} Nf6 {[%emt 0:02:16]
} 8. g3 {[%emt 0:03:52]} e5 {[%emt 0:06:27]} 9. Nge2 {[%emt 0:01:59]} Bg4 {
[%emt 0:03:18]} 10. Bg2 {[%emt 0:04:20]} O-O {[%emt 0:04:55]} 11. Bb2 {[%emt 0:
02:45]} Qa5 {[%emt 0:03:50]} 12. O-O-O {[%emt 0:13:42]} Rac8 {[%emt 0:05:48]}
13. Kb1 {[%emt 0:06:44]} Rfd8 {[%emt 0:17:54]} 14. Rhf1 {[%emt 0:05:58]} Bxe2 {
[%emt 0:09:10]} 15. Qxe2 {[%emt 0:06:47]} Nd4 {[%emt 0:00:22]} 16. Qe1 {
[%emt 0:00:55]} Bg7 {[%emt 0:00:36]} 17. Bh3 {[%emt 0:06:26]} Rc6 {[%emt 0:00:
33]} 18. Rf2 {[%emt 0:01:12]} Qc7 {[%emt 0:01:16]} 19. g4 {[%emt 0:08:51]} b5 {
[%emt 0:10:55]} 20. Rxd4 {[%emt 0:04:27]} Rxc3 {[%emt 0:04:12]} 21. fxe5 {
[%emt 0:01:13]} Nxe4 {[%emt 0:01:20]} 22. Rxe4 {[%emt 0:07:18]} Rxh3 {[%emt 0:
00:07]} 23. e6 {[%emt 0:00:03]} fxe6 {[%emt 0:01:11]} 24. Rxe6 {[%emt 0:00:13]}
Be5 {[%emt 0:00:59]} 25. Bxe5 {[%emt 0:00:52]} dxe5 {[%emt 0:00:01]} 26. Rxe5 {
[%emt 0:00:12]} Qd7 {[%emt 0:00:19]} 27. Kc1 {[%emt 0:05:40]} h5 {[%emt 0:01:
21]} 28. g5 {[%emt 0:02:53]} b4 {[%emt 0:00:33]} 29. Re7 {[%emt 0:00:53]} Qc6 {
[%emt 0:00:28]} 30. Rf6 {[%emt 0:01:45]} 1-0

[Event "EICC 2021"]
[Site "Reykjavik"]
[Date "2021.08.29"]
[Round "4.32"]
[White "Koellner, Ruben Gideon"]
[Black "Dragnev, Valentin"]
[Result "0-1"]
[ECO "D02"]
[WhiteElo "2418"]
[BlackElo "2557"]
[Annotator "ChessBase"]
[PlyCount "152"]
[EventDate "2021.08.26"]
[EventType "swiss"]
[EventCountry "ISL"]
[Tiebreak "Cut1 Buchholz"]
[SourceTitle "playchess.com"]
[Source "ChessBase"]
[SourceQuality "1"]
[TimeControl "40/5400+30:1800+30"]

1. d4 {[%emt 0:00:04]} Nf6 {[%emt 0:00:25]} 2. Nf3 {[%emt 0:00:14]} g6 {
[%emt 0:00:14]} 3. Nbd2 {[%emt 0:00:04]} d5 {[%emt 0:00:16]} 4. e3 {[%emt 0:00:
04]} Bg7 {[%emt 0:00:10]} 5. b4 {[%emt 0:00:05]} a5 {[%emt 0:00:13]} 6. b5 {
[%emt 0:00:04]} c5 {[%emt 0:00:07]} 7. bxc6 {[%emt 0:00:03]} Nxc6 {[%emt 0:00:
08]} 8. a4 {[%emt 0:00:08]} O-O {[%emt 0:01:14]} 9. Be2 {[%emt 0:00:23]} Bf5 {
[%emt 0:00:17]} 10. c3 {[%emt 0:00:08]} Qc7 {[%emt 0:00:12]} 11. Ba3 {[%emt 0:
00:20]} Rfc8 {[%emt 0:00:20]} 12. Qb3 {[%emt 0:00:19]} e5 {[%emt 0:02:20]} 13.
h3 {[%emt 0:06:00]} exd4 {[%emt 0:14:40]} 14. cxd4 {[%emt 0:01:03]} Bf8 {
[%emt 0:02:16]} 15. Bxf8 {[%emt 0:01:12]} Kxf8 {[%emt 0:00:39]} 16. Rc1 {
[%emt 0:00:46]} Qd8 {[%emt 0:02:27]} 17. O-O {[%emt 0:02:05]} Nb4 {[%emt 0:02:
57]} 18. Ne5 {[%emt 0:01:04]} Bc2 {[%emt 0:17:09]} 19. Qa3 {[%emt 0:00:45]} Qe7
{[%emt 0:00:53]} 20. Bd1 {[%emt 0:02:19]} Bf5 {[%emt 0:04:00]} 21. Be2 {
[%emt 0:00:39]} Nd7 {[%emt 0:05:45]} 22. Nxd7+ {[%emt 0:04:45]} Bxd7 {[%emt 0:
02:13]} 23. Nb1 {[%emt 0:00:13]} Qe8 {[%emt 0:17:25]} 24. Nc3 {[%emt 0:01:39]}
Kg7 {[%emt 0:00:05]} 25. Nb5 {[%emt 0:05:46]} Bxb5 {[%emt 0:02:38]} 26. Bxb5 {
[%emt 0:00:09]} Qd8 {[%emt 0:00:07]} 27. Qb2 {[%emt 0:00:31]} h5 {[%emt 0:01:
48]} 28. Rfd1 {[%emt 0:00:40]} h4 {[%emt 0:02:33]} 29. Qe2 {[%emt 0:03:23]}
Rxc1 {[%emt 0:01:30]} 30. Rxc1 {[%emt 0:00:09]} Rc8 {[%emt 0:00:08]} 31. Rxc8 {
[%emt 0:01:24]} Qxc8 {[%emt 0:00:02]} 32. Qf3 {[%emt 0:00:21]} Qc1+ {[%emt 0:
02:29]} 33. Kh2 {[%emt 0:00:10]} Qc7+ {[%emt 0:00:07]} 34. Kg1 {[%emt 0:00:19]}
Qc1+ {[%emt 0:02:27]} 35. Kh2 {[%emt 0:00:10]} Qc7+ {[%emt 0:00:05]} 36. Kg1 {
[%emt 0:00:34]} f5 {[%emt 0:00:56]} 37. Qe2 {[%emt 0:05:03]} Qc1+ {[%emt 0:02:
39]} 38. Kh2 {[%emt 0:01:54]} Qc7+ {[%emt 0:00:03]} 39. Kg1 {[%emt 0:00:17]}
Qc1+ {[%emt 0:00:12]} 40. Kh2 {[%emt 0:00:00]} Kf6 {[%emt 0:00:09]} 41. Qf3 {
[%emt 0:32:14]} Qc7+ {[%emt 0:33:19]} 42. Kg1 {[%emt 0:00:06]} Qc1+ {[%emt 0:
02:38]} 43. Kh2 {[%emt 0:00:07]} Qc7+ {[%emt 0:00:08]} 44. Kg1 {[%emt 0:00:04]}
Ke7 {[%emt 0:00:12]} 45. Kh1 {[%emt 0:00:34]} Qc1+ {[%emt 0:05:18]} 46. Kh2 {
[%emt 0:00:08]} Qc7+ {[%emt 0:00:06]} 47. Kh1 {[%emt 0:00:34]} Kd8 {[%emt 0:00:
26]} 48. Kg1 {[%emt 0:00:25]} Qd6 {[%emt 0:01:21]} 49. Qe2 {[%emt 0:07:26]} Kc7
{[%emt 0:01:50]} 50. Qf3 {[%emt 0:00:15]} Kc8 {[%emt 0:03:16]} 51. Be8 {
[%emt 0:02:38]} Kd8 {[%emt 0:00:33]} 52. Bb5 {[%emt 0:00:11]} Na2 {[%emt 0:01:
10]} 53. Bf1 {[%emt 0:14:44]} Nc3 {[%emt 0:01:24]} 54. e4 {[%emt 0:00:12]} Nxe4
{[%emt 0:00:23]} 55. Qe3 {[%emt 0:00:25]} Kc7 {[%emt 0:00:00]} 56. Bb5 {
[%emt 0:00:00]} Kb8 {[%emt 0:00:00]} 57. f3 {[%emt 0:00:00]} Ng3 {[%emt 0:00:
00]} 58. Qg5 {[%emt 0:00:00]} Qb4 {[%emt 0:00:00]} 59. Qf4+ {[%emt 0:00:00]}
Ka7 {[%emt 0:00:00]} 60. Kf2 {[%emt 0:00:00]} Qb2+ {[%emt 0:00:00]} 61. Ke1 {
[%emt 0:00:00]} Qxg2 {[%emt 0:00:00]} 62. Kd1 {[%emt 0:00:00]} Qf2 {[%emt 0:00:
00]} 63. Qd2 {[%emt 0:00:00]} Qxd2+ {[%emt 0:00:00]} 64. Kxd2 {[%emt 0:00:00]}
Nh5 {[%emt 0:00:00]} 65. Ke3 {[%emt 0:00:00]} f4+ {[%emt 0:00:00]} 66. Kd3 {
[%emt 0:00:00]} Nf6 {[%emt 0:00:00]} 67. Ke2 {[%emt 0:00:00]} Kb6 {[%emt 0:00:
00]} 68. Kd2 {[%emt 0:00:00]} Kc7 {[%emt 0:00:00]} 69. Kc3 {[%emt 0:00:00]} Nh7
{[%emt 0:00:00]} 70. Bf1 {[%emt 0:00:00]} Ng5 {[%emt 0:00:00]} 71. Bg2 {
[%emt 0:00:00]} Kc6 {[%emt 0:00:00]} 72. Kb3 {[%emt 0:00:00]} b6 {[%emt 0:00:
27]} 73. Kc3 {[%emt 0:00:00]} b5 {[%emt 0:00:17]} 74. axb5+ {[%emt 0:00:00]}
Kxb5 {[%emt 0:00:06]} 75. Bf1+ {[%emt 0:00:00]} Kc6 {[%emt 0:02:03]} 76. Bg2 {
[%emt 0:00:00]} a4 {[%emt 0:00:36]} 0-1

[Event "EICC 2021"]
[Site "Reykjavik"]
[Date "2021.08.29"]
[Round "4.33"]
[White "Mazur, Stefan"]
[Black "Sanal, Vahap"]
[Result "1/2-1/2"]
[ECO "C84"]
[WhiteElo "2416"]
[BlackElo "2557"]
[Annotator "ChessBase"]
[PlyCount "92"]
[EventDate "2021.08.26"]
[EventType "swiss"]
[EventCountry "ISL"]
[Tiebreak "Cut1 Buchholz"]
[SourceTitle "playchess.com"]
[Source "ChessBase"]
[SourceQuality "1"]
[TimeControl "40/5400+30:1800+30"]

1. e4 {[%emt 0:02:31]} e5 {[%emt 0:00:11]} 2. Nf3 {[%emt 0:00:14]} Nc6 {
[%emt 0:00:08]} 3. Bb5 {[%emt 0:01:17]} a6 {[%emt 0:00:09]} 4. Ba4 {[%emt 0:00:
04]} Nf6 {[%emt 0:00:08]} 5. O-O {[%emt 0:00:36]} Be7 {[%emt 0:00:08]} 6. d3 {
[%emt 0:02:08]} b5 {[%emt 0:01:12]} 7. Bb3 {[%emt 0:00:05]} d6 {[%emt 0:00:09]}
8. Bd2 {[%emt 0:00:31]} O-O {[%emt 0:02:07]} 9. h3 {[%emt 0:00:21]} a5 {
[%emt 0:04:57]} 10. Nc3 {[%emt 0:03:47]} a4 {[%emt 0:02:51]} 11. Bd5 {[%emt 0:
00:12]} Nxd5 {[%emt 0:01:01]} 12. exd5 {[%emt 0:01:13]} Na7 {[%emt 0:00:22]}
13. d4 {[%emt 0:07:24]} f6 {[%emt 0:07:32]} 14. Qe2 {[%emt 0:14:26]} Qe8 {
[%emt 0:09:53]} 15. Rfe1 {[%emt 0:04:08]} Bb7 {[%emt 0:14:11]} 16. a3 {[%emt 0:
17:32]} Qf7 {[%emt 0:03:09]} 17. dxe5 {[%emt 0:16:02]} fxe5 {[%emt 0:00:26]}
18. Bg5 {[%emt 0:03:19]} Bf6 {[%emt 0:04:27]} 19. Rad1 {[%emt 0:03:23]} h6 {
[%emt 0:05:51]} 20. Bxf6 {[%emt 0:02:06]} gxf6 {[%emt 0:01:12]} 21. Nh2 {
[%emt 0:00:59]} Qg6 {[%emt 0:07:20]} 22. Rd3 {[%emt 0:01:22]} Kh8 {[%emt 0:00:
52]} 23. Rg3 {[%emt 0:02:05]} Qf5 {[%emt 0:03:55]} 24. Ng4 {[%emt 0:02:49]} Qh7
{[%emt 0:04:14]} 25. Ne4 {[%emt 0:04:06]} f5 {[%emt 0:00:20]} 26. Nxe5 {
[%emt 0:02:48]} dxe5 {[%emt 0:01:43]} 27. Nc5 {[%emt 0:01:50]} Rae8 {[%emt 0:
04:57]} 28. Nxb7 {[%emt 0:03:09]} f4 {[%emt 0:01:17]} 29. Rg4 {[%emt 0:00:34]}
Rf5 {[%emt 0:01:12]} 30. Nc5 {[%emt 0:00:44]} h5 {[%emt 0:00:34]} 31. Rh4 {
[%emt 0:00:11]} Rg8 {[%emt 0:05:12]} 32. Qf3 {[%emt 0:01:05]} Qg6 {[%emt 0:02:
11]} 33. Ne4 {[%emt 0:02:20]} Nc8 {[%emt 0:00:22]} 34. Kh2 {[%emt 0:01:25]} Nd6
{[%emt 0:00:15]} 35. g4 {[%emt 0:00:30]} fxg3+ {[%emt 0:00:35]} 36. Qxg3 {
[%emt 0:00:06]} Qh7 {[%emt 0:03:56]} 37. Qe3 {[%emt 0:00:30]} Nxe4 {[%emt 0:00:
53]} 38. Qxe4 {[%emt 0:00:19]} Qg6 {[%emt 0:01:49]} 39. c3 {[%emt 0:01:15]} Qg5
{[%emt 0:02:53]} 40. Qg4 {[%emt 0:00:27]} Rxf2+ {[%emt 0:02:01]} 41. Kh1 {
[%emt 0:01:10]} Qxg4 {[%emt 0:06:51]} 42. hxg4 {[%emt 0:00:09]} Rxg4 {[%emt 0:
00:33]} 43. Rxh5+ {[%emt 0:02:52]} Kg7 {[%emt 0:01:10]} 44. Rhxe5 {[%emt 0:00:
38]} Rxb2 {[%emt 0:01:14]} 45. Re7+ {[%emt 0:00:25]} Kg6 {[%emt 0:00:46]} 46.
Rxc7 {[%emt 0:00:55]} Rh4+ {[%emt 0:01:04]} 1/2-1/2

[Event "EICC 2021"]
[Site "Reykjavik"]
[Date "2021.08.29"]
[Round "4.35"]
[White "Unuk, Laura"]
[Black "Van Foreest, Lucas"]
[Result "0-1"]
[ECO "E66"]
[WhiteElo "2407"]
[BlackElo "2544"]
[Annotator "ChessBase"]
[PlyCount "126"]
[EventDate "2021.08.26"]
[EventType "swiss"]
[EventCountry "ISL"]
[Tiebreak "Cut1 Buchholz"]
[SourceTitle "playchess.com"]
[Source "ChessBase"]
[SourceQuality "1"]
[TimeControl "40/5400+30:1800+30"]

1. d4 {[%emt 0:00:06]} g6 {[%emt 0:00:46]} 2. c4 {[%emt 0:01:09]} Bg7 {[%emt 0:
00:13]} 3. Nf3 {[%emt 0:00:13]} d6 {[%emt 0:01:05]} 4. g3 {[%emt 0:00:28]} c5 {
[%emt 0:01:31]} 5. Bg2 {[%emt 0:08:26]} Nc6 {[%emt 0:00:48]} 6. d5 {[%emt 0:03:
49]} Na5 {[%emt 0:00:56]} 7. O-O {[%emt 0:01:15]} Nf6 {[%emt 0:00:12]} 8. Nc3 {
[%emt 0:12:30]} O-O {[%emt 0:00:06]} 9. Nd2 {[%emt 0:00:14]} e6 {[%emt 0:00:03]
} 10. Rb1 {[%emt 0:03:33]} exd5 {[%emt 0:00:09]} 11. cxd5 {[%emt 0:01:03]} Bd7
{[%emt 0:00:19]} 12. b4 {[%emt 0:03:35]} cxb4 {[%emt 0:00:58]} 13. Rxb4 {
[%emt 0:00:06]} Rc8 {[%emt 0:00:03]} 14. Bb2 {[%emt 0:04:42]} Ng4 {[%emt 0:24:
08]} 15. Qa1 {[%emt 0:26:54]} f5 {[%emt 0:18:24]} 16. Nb5 {[%emt 0:05:57]} Bxb2
17. Qxb2 Bxb5 {[%emt 0:00:00]} 18. Rxb5 {[%emt 0:00:09]} Ne5 {[%emt 0:00:00]}
19. Qd4 {[%emt 0:09:44]} b6 {[%emt 0:00:00]} 20. f4 {[%emt 0:04:38]} Nec4 {
[%emt 0:00:00]} 21. e4 {[%emt 0:00:23]} Nxd2 {[%emt 0:00:57]} 22. Qxd2 {
[%emt 0:00:06]} fxe4 {[%emt 0:00:09]} 23. Rb4 {[%emt 0:01:01]} Rc4 {[%emt 0:08:
43]} 24. Bxe4 {[%emt 0:06:13]} Qc7 {[%emt 0:01:17]} 25. Kh1 {[%emt 0:00:11]}
Re8 {[%emt 0:05:48]} 26. Bd3 {[%emt 0:03:59]} Rxb4 {[%emt 0:13:17]} 27. Qxb4 {
[%emt 0:00:02]} Qc5 {[%emt 0:00:36]} 28. Qb5 {[%emt 0:01:11]} Re3 {[%emt 0:03:
48]} 29. f5 {[%emt 0:00:23]} gxf5 {[%emt 0:05:57]} 30. Rxf5 {[%emt 0:00:08]}
Qxb5 {[%emt 0:01:15]} 31. Bxb5 {[%emt 0:00:05]} Nb7 {[%emt 0:00:44]} 32. a4 {
[%emt 0:03:25]} Kg7 {[%emt 0:03:08]} 33. Kg2 {[%emt 0:00:44]} Nc5 {[%emt 0:00:
31]} 34. Rf4 {[%emt 0:00:34]} h5 {[%emt 0:04:15]} 35. Kf2 {[%emt 0:00:31]} Ra3
{[%emt 0:00:27]} 36. h4 {[%emt 0:00:29]} a6 {[%emt 0:02:24]} 37. Be2 {[%emt 0:
00:12]} Kg6 {[%emt 0:00:36]} 38. g4 {[%emt 0:00:45]} hxg4 {[%emt 0:00:24]} 39.
Rxg4+ {[%emt 0:00:33]} Kf5 {[%emt 0:00:43]} 40. Rb4 {[%emt 0:00:12]} Ne4+ {
[%emt 0:04:22]} 41. Kg2 {[%emt 0:07:08]} Ra2 {[%emt 0:02:29]} 42. Kf3 {[%emt 0:
01:08]} Ra3+ {[%emt 0:00:05]} 43. Kg2 {[%emt 0:00:04]} a5 {[%emt 0:00:40]} 44.
Rxb6 {[%emt 0:04:19]} Kf4 {[%emt 0:02:23]} 45. Rb2 {[%emt 0:09:04]} Rxa4 {
[%emt 0:00:09]} 46. h5 {[%emt 0:00:09]} Ra3 {[%emt 0:08:50]} 47. Bb5 {[%emt 0:
05:18]} Rg3+ {[%emt 0:00:47]} 48. Kf1 {[%emt 0:00:30]} Nc3 {[%emt 0:05:25]} 49.
Bc6 {[%emt 0:02:59]} Nd1 {[%emt 0:03:14]} 50. Rb8 {[%emt 0:02:24]} Ne3+ {
[%emt 0:00:03]} 51. Ke2 {[%emt 0:00:09]} Rh3 {[%emt 0:00:06]} 52. Ra8 {[%emt 0:
02:37]} Ke4 {[%emt 0:01:33]} 53. Re8+ {[%emt 0:00:04]} Kd4 {[%emt 0:00:09]} 54.
Ra8 {[%emt 0:00:53]} Nc4 {[%emt 0:00:17]} 55. Rh8 {[%emt 0:00:57]} Ne5 {
[%emt 0:00:08]} 56. Ra8 {[%emt 0:00:27]} Rh2+ {[%emt 0:00:31]} 57. Kf1 {
[%emt 0:00:24]} Ke3 {[%emt 0:00:23]} 58. Rf8 {[%emt 0:00:46]} Rxh5 {[%emt 0:00:
18]} 59. Rf6 {[%emt 0:00:26]} Rh2 {[%emt 0:01:09]} 60. Kg1 {[%emt 0:00:31]} Rc2
{[%emt 0:00:41]} 61. Re6 {[%emt 0:00:10]} Kf3 {[%emt 0:01:21]} 62. Bb5 {
[%emt 0:00:46]} Rc1+ {[%emt 0:00:29]} 63. Bf1 {[%emt 0:00:16]} Kg3 {[%emt 0:00:
18]} 0-1

[Event "EICC 2021"]
[Site "Reykjavik"]
[Date "2021.08.29"]
[Round "4.36"]
[White "Hillarp Persson, Tiger"]
[Black "Sousa, Andre Ventura"]
[Result "1/2-1/2"]
[ECO "D85"]
[WhiteElo "2543"]
[BlackElo "2405"]
[Annotator "ChessBase"]
[PlyCount "84"]
[EventDate "2021.08.26"]
[EventType "swiss"]
[EventCountry "ISL"]
[Tiebreak "Cut1 Buchholz"]
[SourceTitle "playchess.com"]
[Source "ChessBase"]
[SourceQuality "1"]
[TimeControl "40/5400+30:1800+30"]

1. d4 {[%emt 0:00:02]} Nf6 {[%emt 0:00:05]} 2. c4 {[%emt 0:00:06]} g6 {[%emt 0:
00:03]} 3. Nc3 {[%emt 0:00:08]} d5 {[%emt 0:00:04]} 4. Nf3 {[%emt 0:01:42]} Bg7
{[%emt 0:00:12]} 5. cxd5 {[%emt 0:00:08]} Nxd5 {[%emt 0:00:06]} 6. e4 {[%emt 0:
00:06]} Nxc3 {[%emt 0:00:03]} 7. bxc3 {[%emt 0:00:06]} c5 {[%emt 0:00:03]} 8.
Be3 {[%emt 0:00:10]} Qa5 {[%emt 0:00:12]} 9. Qd2 {[%emt 0:00:12]} O-O {[%emt 0:
00:19]} 10. Rc1 {[%emt 0:00:07]} Bg4 {[%emt 0:00:05]} 11. Ng5 {[%emt 0:07:52]}
Nc6 {[%emt 0:12:58]} 12. h3 {[%emt 0:04:18]} cxd4 {[%emt 0:04:13]} 13. cxd4 {
[%emt 0:00:36]} Bd7 {[%emt 0:02:50]} 14. d5 {[%emt 0:28:30]} Nb4 {[%emt 0:18:
40]} 15. Bc4 {[%emt 0:02:23]} b5 {[%emt 0:04:01]} 16. Bc5 {[%emt 0:03:39]} bxc4
{[%emt 0:02:08]} 17. Bxb4 {[%emt 0:00:08]} Qb6 {[%emt 0:09:52]} 18. Bc3 {
[%emt 0:02:28]} Bh6 {[%emt 0:03:36]} 19. f4 {[%emt 0:00:30]} f6 {[%emt 0:02:48]
} 20. Nf3 {[%emt 0:00:08]} e5 {[%emt 0:03:53]} 21. dxe6 {[%emt 0:00:19]} Bxe6 {
[%emt 0:03:35]} 22. Nd4 {[%emt 0:00:19]} Rae8 {[%emt 0:04:27]} 23. O-O {
[%emt 0:00:50]} Bc8 {[%emt 0:02:22]} 24. Rb1 {[%emt 0:04:01]} Qa6 {[%emt 0:03:
50]} 25. Rbe1 {[%emt 0:08:21]} Bb7 {[%emt 0:01:07]} 26. Qc2 {[%emt 0:00:15]}
Rf7 {[%emt 0:11:12]} 27. f5 {[%emt 0:02:21]} Qd6 {[%emt 0:02:06]} 28. Ne6 {
[%emt 0:14:46]} Qd3 {[%emt 0:00:49]} 29. Qa4 {[%emt 0:00:07]} Rc8 {[%emt 0:02:
21]} 30. Rf3 {[%emt 0:01:08]} Qd6 {[%emt 0:01:22]} 31. Rd1 {[%emt 0:06:42]}
Qb6+ {[%emt 0:00:12]} 32. Bd4 {[%emt 0:01:05]} Qc6 {[%emt 0:00:14]} 33. Qa5 {
[%emt 0:04:25]} Qxe4 {[%emt 0:00:39]} 34. Bc5 {[%emt 0:02:07]} Qe5 {[%emt 0:02:
57]} 35. Rd8+ {[%emt 0:00:57]} Rf8 {[%emt 0:00:05]} 36. Rd7 {[%emt 0:05:35]}
Rxc5 {[%emt 0:01:52]} 37. Qxa7 {[%emt 0:01:24]} Be3+ {[%emt 0:00:47]} 38. Rxe3
{[%emt 0:00:05]} Qxe3+ {[%emt 0:00:03]} 39. Kh2 {[%emt 0:00:14]} Qe5+ {[%emt 0:
00:10]} 40. Kg1 {[%emt 0:00:23]} Qe1+ {[%emt 0:00:41]} 41. Kh2 {[%emt 0:30:08]}
Qe5+ {[%emt 0:11:24]} 42. Kg1 {[%emt 0:00:00]} Qe1+ {[%emt 0:00:25]} 1/2-1/2